bitfinex/quotes_BTCUSD_20241205
["timestamp","ask_amount","ask_price","bid_price","bid_amount"]
[1733427357002,0.29907134,100490.0,100480.0,0.039808]
[1733427357205,0.15,100480.0,100470.0,0.079619]
[1733427357379,0.24967605,100480.0,100470.0,0.079619]
[1733427359087,0.24967605,100480.0,100460.0,0.13452565]
[1733427359296,0.25067134,100470.0,100460.0,0.09471065]
[1733427359477,0.24967605,100470.0,100460.0,0.09471065]
[1733427359619,0.27464366,100470.0,100460.0,0.09471065]
[1733427359822,0.24967605,100470.0,100460.0,0.09471065]
[1733427360027,0.24967605,100470.0,100460.0,0.079629]
[1733427360229,0.24967605,100470.0,100460.0,0.039814]
[1733427360480,0.24967605,100470.0,100460.0,0.03998973]
[1733427361663,0.53094005,100470.0,100460.0,0.00017573]
[1733427361894,0.33187605,100470.0,100460.0,0.03003773]
[1733427362525,0.40487355,100470.0,100460.0,0.03003773]
[1733427362728,0.33187605,100470.0,100460.0,0.03003773]
[1733427363422,0.34722214,100470.0,100460.0,0.03003773]
[1733427363802,0.34722214,100470.0,100460.0,0.03090503]
[1733427365050,0.09967605,100470.0,100460.0,0.03090503]
[1733427365219,0.25067134,100470.0,100460.0,0.03090503]
[1733427365451,0.54870765,100470.0,100460.0,0.00104303]
[1733427366331,0.69720765,100470.0,100460.0,0.00104303]
[1733427367327,0.79720765,100470.0,100460.0,0.00104303]
[1733427368387,0.69720765,100470.0,100460.0,0.00104303]
[1733427369074,0.37317605,100470.0,100460.0,0.00104303]
[1733427369239,0.32467605,100470.0,100460.0,0.03090503]
[1733427369527,0.17467605,100470.0,100460.0,0.03090503]
[1733427369654,0.10067134,100470.0,100460.0,0.03090503]
[1733427370337,0.09967605,100470.0,100460.0,0.03090503]
[1733427371429,0.25124169,100490.0,100460.0,0.03090503]
[1733427371637,0.25067134,100480.0,100470.0,0.029858]
[1733427371831,0.24967605,100480.0,100470.0,0.059716]
[1733427372040,0.24967605,100480.0,100460.0,0.03090503]
[1733427372244,0.24967605,100480.0,100470.0,0.029859]
[1733427375571,0.0027204,100490.0,100480.0,0.029856]
[1733427375825,0.10239645,100490.0,100480.0,0.029856]
[1733427376023,0.10240594,100490.0,100480.0,0.029856]
[1733427376428,0.10141065,100490.0,100480.0,0.029856]
[1733427376744,0.25141065,100490.0,100480.0,0.029856]
[1733427380957,0.15,100480.0,100470.0,0.059717]
[1733427381163,0.37267134,100480.0,100460.0,0.00104303]
[1733427381368,0.44973534,100470.0,100460.0,0.00104303]
[1733427381570,0.44874005,100470.0,100460.0,0.00104303]
[1733427382618,0.4522345,100470.0,100460.0,0.00104303]
[1733427382879,0.55015372,100470.0,100460.0,0.00104303]
[1733427383088,0.2531705,100470.0,100460.0,0.00104303]
[1733427383214,0.2531705,100470.0,100460.0,0.03090503]
[1733427385138,0.2531705,100470.0,100460.0,0.00104303]
[1733427385366,0.4522345,100470.0,100460.0,0.00104303]
[1733427385931,0.2531705,100470.0,100460.0,0.03090503]
[1733427386142,0.33617373,100470.0,100460.0,0.00104303]
[1733427386318,0.2531705,100470.0,100460.0,0.00104303]
[1733427386522,0.4522345,100470.0,100460.0,0.00104303]
[1733427388584,0.55381813,100470.0,100460.0,0.00104303]
[1733427391856,0.70281813,100470.0,100460.0,0.00104303]
[1733427392084,1.33741813,100470.0,100460.0,0.00104303]
[1733427392309,1.43533735,100470.0,100460.0,0.00104303]
[1733427393313,1.23533735,100470.0,100460.0,0.00104303]
[1733427395660,1.33533735,100470.0,100460.0,0.00104303]
[1733427395913,1.23533735,100470.0,100460.0,0.00104303]
[1733427396245,1.23741813,100470.0,100460.0,0.00104303]
[1733427396447,1.08741813,100470.0,100460.0,0.00104303]
[1733427397341,0.55281813,100470.0,100460.0,0.00104303]
[1733427397650,0.54932368,100470.0,100460.0,0.00104303]
[1733427397848,0.69932368,100470.0,100460.0,0.00104303]
[1733427398049,0.6972429,100470.0,100460.0,0.00104303]
[1733427398269,0.44932368,100470.0,100460.0,0.00104303]
[1733427399569,0.59932368,100470.0,100460.0,0.00104303]
[1733427399799,1.23392368,100470.0,100460.0,0.00104303]
[1733427401123,1.23565848,100470.0,100460.0,0.00104303]
[1733427401336,1.4335777,100470.0,100460.0,0.00104303]
[1733427401534,1.2335777,100470.0,100460.0,0.00104303]
[1733427402590,1.3335777,100470.0,100460.0,0.00104303]
[1733427402810,1.2335777,100470.0,100460.0,0.00104303]
[1733427403553,1.2335777,100470.0,100460.0,3e-08]
[1733427403781,0.349084,100460.0,100450.0,0.00024968]
[1733427404146,0.47519527,100460.0,100450.0,0.00042613]
[1733427404274,0.67427927,100460.0,100450.0,0.00042613]
[1733427407233,0.57636005,100460.0,100450.0,0.00042613]
[1733427407445,0.42636005,100460.0,100450.0,0.00042613]
[1733427407714,0.38106005,100460.0,100450.0,0.00042613]
[1733427408827,0.53106005,100460.0,100450.0,0.00042613]
[1733427410150,0.09967605,100460.0,100450.0,0.03029113]
[1733427410385,0.09967605,100460.0,100450.0,0.00042613]
[1733427410609,0.29975534,100460.0,100450.0,0.00042613]
[1733427410834,0.37885123,100460.0,100450.0,0.00042613]
[1733427411092,0.29876005,100460.0,100450.0,0.00042613]
[1733427411551,0.44876005,100460.0,100450.0,0.00042613]
[1733427412009,0.44876005,100460.0,100450.0,0.04024613]
[1733427412245,0.24967605,100460.0,100450.0,0.04024613]
[1733427412709,0.24967605,100460.0,100420.0,0.09999958]
[1733427412710,0.20803751,100450.0,100420.0,0.09999958]
[1733427412949,0.30771356,100450.0,100440.0,0.039824]
[1733427413420,0.24967605,100450.0,100440.0,0.039824]
[1733427414144,0.20994768,100460.0,100440.0,0.11947]
[1733427414374,0.30962373,100460.0,100440.0,0.11947]
[1733427414598,0.20928199,100450.0,100440.0,0.079646]
[1733427414863,0.15,100450.0,100440.0,0.079646]
[1733427415088,0.20803751,100450.0,100440.0,0.079646]
[1733427415338,0.15,100450.0,100440.0,0.079646]
[1733427415561,0.15124447,100450.0,100440.0,0.079646]
[1733427415782,0.20928198,100450.0,100440.0,0.079646]
[1733427415998,0.20803751,100450.0,100440.0,0.079646]
[1733427417541,0.20803751,100450.0,100440.0,0.09819719]
[1733427419797,0.15,100450.0,100440.0,0.09819719]
[1733427420023,0.15191017,100460.0,100450.0,0.03982]
[1733427420247,0.15315449,100460.0,100450.0,0.03982]
[1733427420464,0.15315449,100460.0,100450.0,0.069685]
[1733427422344,0.20803751,100450.0,100440.0,0.029866]
[1733427422567,0.58481756,100450.0,100430.0,0.029869]
[1733427422795,0.00124457,100440.0,100430.0,0.059738]
[1733427423030,0.15895813,100440.0,100430.0,0.029869]
[1733427423290,0.05803751,100430.0,100420.0,0.07874297]
[1733427423517,0.05928221,100430.0,100420.0,0.07874297]
[1733427423976,0.05803751,100430.0,100420.0,0.07874297]
[1733427425101,0.05928221,100430.0,100420.0,0.07961027]
[1733427427086,0.42265409,100430.0,100420.0,0.07961027]
[1733427427326,0.39051356,100430.0,100420.0,0.04973727]
[1733427429069,0.53161905,100430.0,100420.0,0.0008673]
[1733427429496,0.57801905,100430.0,100420.0,0.0008673]
[1733427429726,0.77801905,100430.0,100420.0,0.0008673]
[1733427429936,0.87593827,100430.0,100420.0,0.0008673]
[1733427430403,0.74673827,100430.0,100400.0,0.005]
[1733427430618,0.67695905,100410.0,100400.0,0.005]
[1733427430861,0.549203,100400.0,100390.0,0.0008681]
[1733427431083,0.77697905,100400.0,100390.0,0.0008681]
[1733427431302,1.30919526,100400.0,100390.0,0.0008681]
[1733427431784,1.30919526,100400.0,100380.0,0.0008681]
[1733427431785,0.577323,100390.0,100380.0,0.0008681]
[1733427431982,0.2817,100370.0,100360.0,0.00031024]
[1733427432202,0.67703805,100370.0,100360.0,0.00089792]
[1733427432877,0.67703805,100370.0,100360.0,0.00058768]
[1733427433076,0.77495727,100370.0,100360.0,0.00058768]
[1733427433582,1.20955727,100370.0,100360.0,0.00058768]
[1733427433783,1.20955727,100370.0,100340.0,0.0161449]
[1733427433784,0.477402,100350.0,100340.0,0.0161449]
[1733427434039,0.57707805,100350.0,100340.0,0.01632129]
[1733427435161,0.59629299,100350.0,100340.0,0.01632129]
[1733427435372,0.69147084,100350.0,100340.0,0.01632129]
[1733427436965,0.576422,100340.0,100330.0,0.0008672]
[1733427437201,0.77609805,100340.0,100330.0,0.00104349]
[1733427437428,0.77609805,100340.0,100310.0,0.0008671]
[1733427437429,0.571362,100320.0,100310.0,0.0008671]
[1733427437645,0.671381,100310.0,100300.0,0.00031024]
[1733427437870,0.86809896,100310.0,100300.0,0.00031024]
[1733427438098,0.76809896,100310.0,100300.0,0.00031024]
[1733427438317,0.476421,100290.0,100280.0,0.0008671]
[1733427438526,0.57609705,100290.0,100280.0,0.0008671]
[1733427439669,0.57609705,100290.0,100280.0,0.00145481]
[1733427441234,0.37667605,100290.0,100280.0,0.03137081]
[1733427442359,0.57609705,100290.0,100280.0,0.00145481]
[1733427442618,0.77609705,100290.0,100280.0,0.00145481]
[1733427442827,0.67609705,100290.0,100280.0,0.00145481]
[1733427443448,0.67609705,100290.0,100240.0,0.0152277]
[1733427443449,0.40753851,100250.0,100240.0,0.0152277]
[1733427443703,0.5424189,100250.0,100240.0,0.01540433]
[1733427444793,0.24967605,100250.0,100240.0,0.01540433]
[1733427445018,0.44917705,100250.0,100240.0,0.01540433]
[1733427445443,0.24967605,100250.0,100240.0,0.01540433]
[1733427445655,0.44917705,100250.0,100240.0,0.01540433]
[1733427446566,0.46667209,100250.0,100240.0,0.01540433]
[1733427446780,0.56800818,100250.0,100240.0,0.01540433]
[1733427447664,0.46667209,100250.0,100240.0,0.01540433]
[1733427448367,0.46667209,100250.0,100240.0,0.01627293]
[1733427448598,0.46667209,100250.0,100240.0,0.04620093]
[1733427448599,0.26717109,100250.0,100240.0,0.04620093]
[1733427448828,0.26717109,100250.0,100240.0,0.01627293]
[1733427449253,0.26717109,100250.0,100240.0,0.04620093]
[1733427449475,0.56459131,100250.0,100240.0,0.01627293]
[1733427450108,0.54459131,100250.0,100240.0,0.01627293]
[1733427450764,0.44667209,100250.0,100240.0,0.01627293]
[1733427451994,0.24717109,100250.0,100240.0,0.01627293]
[1733427452209,0.44667209,100250.0,100240.0,0.01627293]
[1733427452864,0.54667209,100250.0,100240.0,0.01627293]
[1733427453503,0.64667209,100250.0,100240.0,0.01627293]
[1733427453759,0.74459131,100250.0,100240.0,0.01627293]
[1733427454648,0.76539131,100250.0,100240.0,0.01627293]
[1733427455470,0.66539131,100250.0,100240.0,0.01627293]
[1733427457637,0.480821,100240.0,100230.0,0.0008671]
[1733427457847,0.58049705,100240.0,100230.0,0.0010438]
[1733427458058,0.67841627,100240.0,100230.0,0.0010438]
[1733427458290,0.77841627,100240.0,100230.0,0.0010438]
[1733427459643,0.68049705,100240.0,100230.0,0.0010438]
[1733427459863,0.58049705,100240.0,100230.0,0.0010438]
[1733427460085,0.43049705,100240.0,100230.0,0.0010438]
[1733427460929,0.63049705,100240.0,100230.0,0.0010438]
[1733427461151,0.47536,100220.0,100210.0,0.00086883]
[1733427461371,0.81248275,100220.0,100210.0,0.00086883]
[1733427461579,0.71248275,100220.0,100210.0,0.00086883]
[1733427462672,0.76058275,100220.0,100210.0,0.00086883]
[1733427463699,0.67313605,100220.0,100210.0,0.00086883]
[1733427464598,0.77313605,100220.0,100210.0,0.00086883]
[1733427465473,0.69005947,100220.0,100210.0,0.00086883]
[1733427467256,0.72418073,100220.0,100210.0,0.00086883]
[1733427467949,0.68897138,100220.0,100210.0,0.00086883]
[1733427468155,0.43897138,100220.0,100210.0,0.00086883]
[1733427468818,0.5368906,100220.0,100210.0,0.00086883]
[1733427469264,0.58897138,100220.0,100210.0,0.00086883]
[1733427470103,0.68897138,100220.0,100210.0,0.00086883]
[1733427471537,0.58897138,100220.0,100210.0,0.00086883]
[1733427472026,0.68897138,100220.0,100210.0,0.00086883]
[1733427472342,0.68897138,100220.0,100210.0,0.00173823]
[1733427472546,0.7868906,100220.0,100210.0,0.00173823]
[1733427472972,0.1,100210.0,100200.0,0.0025]
[1733427473191,0.1,100210.0,100170.0,0.0434671]
[1733427473192,0.05803751,100180.0,100170.0,0.0434671]
[1733427473387,0.15771356,100180.0,100170.0,0.0734161]
[1733427473602,0.15896144,100180.0,100170.0,0.0734161]
[1733427474038,0.50860144,100180.0,100170.0,0.0008671]
[1733427474269,0.50735356,100180.0,100170.0,0.0008671]
[1733427474482,0.50735356,100180.0,100170.0,0.00145623]
[1733427475392,0.05803751,100170.0,100140.0,0.05419297]
[1733427475609,0.00124805,100160.0,100140.0,0.05419297]
[1733427476065,0.00124805,100160.0,100150.0,0.029952]
[1733427476478,0.00124805,100160.0,100150.0,0.059907]
[1733427476698,0.1009241,100160.0,100150.0,0.029952]
[1733427476904,0.13478924,100170.0,100160.0,0.029952]
[1733427477118,0.0009877,100170.0,100160.0,0.029952]
[1733427477337,0.28438561,100180.0,100160.0,0.029952]
[1733427477534,0.38406166,100180.0,100170.0,0.029949]
[1733427478241,0.30829763,100180.0,100170.0,0.029949]
[1733427478453,0.00058407,100180.0,100170.0,0.029949]
[1733427478664,0.00058407,100180.0,100170.0,0.07241628]
[1733427479316,0.00058407,100180.0,100170.0,0.17209233]
[1733427480589,0.00058407,100180.0,100170.0,0.18963703]
[1733427480792,0.22475267,100200.0,100180.0,0.059889]
[1733427480997,0.22475267,100200.0,100180.0,0.06006584]
[1733427481228,0.14898864,100200.0,100180.0,0.06006584]
[1733427481416,0.22600021,100200.0,100180.0,0.09000984]
[1733427481619,0.22475267,100200.0,100180.0,0.09051307]
[1733427482086,0.22475267,100200.0,100190.0,0.029943]
[1733427482285,0.07675373,100200.0,100180.0,0.09051307]
[1733427482490,0.07576403,100200.0,100190.0,0.029943]
[1733427482702,0.07576403,100200.0,100180.0,0.06056907]
[1733427482900,0.22576403,100200.0,100180.0,0.06056907]
[1733427483122,0.22576403,100200.0,100180.0,0.09051307]
[1733427483342,0.0009829,100210.0,100200.0,0.02994]
[1733427483781,0.00124741,100210.0,100190.0,0.02994]
[1733427483998,0.07875024,100220.0,100200.0,0.02994]
[1733427484217,0.2364638,100220.0,100200.0,0.02994]
[1733427484498,0.2364638,100220.0,100200.0,0.05988]
[1733427484704,0.2364638,100220.0,100190.0,0.06038492]
[1733427484918,0.2364638,100220.0,100200.0,0.029939]
[1733427484919,0.31849242,100220.0,100200.0,0.029939]
[1733427485124,0.23521639,100220.0,100200.0,0.059877]
[1733427485329,0.23521639,100220.0,100200.0,0.059878]
[1733427485538,0.23521639,100220.0,100190.0,0.04736745]
[1733427485741,0.43477739,100220.0,100190.0,0.07680353]
[1733427485946,0.23521639,100220.0,100190.0,0.07680353]
[1733427486096,0.23521639,100220.0,100200.0,0.029939]
[1733427486305,0.23521639,100220.0,100200.0,0.059879]
[1733427486915,0.43478039,100220.0,100190.0,0.07680353]
[1733427487151,0.53269961,100220.0,100190.0,0.10674353]
[1733427487792,0.63388999,100210.0,100190.0,0.01692253]
[1733427487954,0.63388999,100210.0,100180.0,0.06006384]
[1733427488112,0.23472499,100210.0,100190.0,0.029942]
[1733427488340,0.23472499,100210.0,100190.0,0.059885]
[1733427488553,0.23280515,100210.0,100190.0,0.089826]
[1733427488773,0.23280515,100210.0,100190.0,0.059883]
[1733427489193,0.23280515,100210.0,100190.0,0.089824]
[1733427489628,0.17476764,100210.0,100200.0,0.02994]
[1733427489820,0.53730611,100220.0,100210.0,0.02987694]
[1733427489821,0.07848663,100220.0,100210.0,0.02987694]
[1733427490013,0.10396995,100220.0,100180.0,0.029943]
[1733427490276,0.25298615,100220.0,100210.0,0.029937]
[1733427490420,0.1527248,100220.0,100210.0,0.029937]
[1733427490625,0.15397213,100220.0,100210.0,0.029937]
[1733427490912,0.25298613,100220.0,100210.0,0.029937]
[1733427491136,0.2517388,100220.0,100210.0,0.029937]
[1733427491389,0.1517388,100220.0,100210.0,0.029937]
[1733427491602,0.25298612,100220.0,100210.0,0.029937]
[1733427491792,0.0017388,100220.0,100210.0,0.029937]
[1733427492032,0.0009973,100240.0,100230.0,0.029931]
[1733427492458,0.2012469,100260.0,100220.0,0.029931]
[1733427492670,0.09967605,100260.0,100250.0,0.029925]
[1733427492845,0.1480912,100270.0,100250.0,0.05985]
[1733427493096,0.54847509,100270.0,100250.0,0.029925]
[1733427493322,0.50155049,100270.0,100250.0,0.029923]
[1733427493546,0.40155049,100270.0,100250.0,0.029923]
[1733427493775,0.40155049,100270.0,100250.0,0.059848]
[1733427493998,0.40030365,100270.0,100250.0,0.059848]
[1733427494206,0.30084265,100270.0,100260.0,0.029922]
[1733427494421,0.1011666,100270.0,100260.0,0.029922]
[1733427494677,0.10142212,100270.0,100260.0,0.029922]
[1733427495110,0.0001754,100270.0,100260.0,0.029922]
[1733427496200,0.0001754,100270.0,100260.0,0.030077]
[1733427496868,0.09985145,100270.0,100260.0,0.000155]
[1733427497079,0.70931296,100270.0,100260.0,0.000155]
[1733427498167,0.64931245,100270.0,100260.0,0.000155]
[1733427500131,0.64931245,100270.0,100260.0,0.030077]
[1733427500777,0.44985145,100270.0,100260.0,0.030077]
[1733427501214,0.64931245,100270.0,100260.0,0.000155]
[1733427502497,0.34985145,100270.0,100260.0,0.030077]
[1733427502706,0.2501754,100270.0,100260.0,0.030077]
[1733427503166,0.0001754,100270.0,100260.0,0.030077]
[1733427504955,0.0001754,100270.0,100260.0,0.12975305]
[1733427509394,0.0019142,100270.0,100260.0,0.12975305]
[1733427510288,0.0019142,100270.0,100260.0,0.15275305]
[1733427510736,0.0009837,100300.0,100290.0,0.029913]
[1733427510953,0.00157246,100300.0,100290.0,0.029913]
[1733427511137,0.00058876,100300.0,100290.0,0.029913]
[1733427513617,0.301237,100300.0,100280.0,0.029913]
[1733427513756,0.29999076,100300.0,100280.0,0.059829]
[1733427514365,0.10058876,100300.0,100290.0,0.029913]
[1733427514563,0.1018351,100300.0,100290.0,0.029913]
[1733427515642,0.1018351,100300.0,100280.0,0.08974]
[1733427515852,0.1018351,100300.0,100290.0,0.029913]
[1733427518112,0.10058876,100300.0,100290.0,0.029913]
[1733427519580,0.10183502,100300.0,100280.0,0.05095025]
[1733427519785,0.10183502,100300.0,100280.0,0.08086625]
[1733427520202,0.10183502,100300.0,100290.0,0.029913]
[1733427520414,0.10183502,100300.0,100280.0,0.11078025]
[1733427520841,0.10183502,100300.0,100280.0,0.08086425]
[1733427521253,0.00058876,100300.0,100290.0,0.029913]
[1733427521897,0.00058876,100300.0,100290.0,0.12958905]
[1733427522143,0.00058876,100300.0,100290.0,0.029913]
[1733427523422,0.00232216,100300.0,100290.0,0.029913]
[1733427524250,0.00232216,100300.0,100290.0,0.12958905]
[1733427526086,0.00232216,100300.0,100290.0,0.029913]
[1733427527755,0.00232216,100300.0,100280.0,0.029914]
[1733427527948,0.00232216,100300.0,100290.0,0.029913]
[1733427530019,0.00232216,100300.0,100290.0,0.12958905]
[1733427531483,0.00232216,100300.0,100290.0,0.05105904]
[1733427531698,0.00356833,100300.0,100290.0,0.02114604]
[1733427531911,0.33146833,100300.0,100280.0,0.029914]
[1733427532121,0.33022216,100300.0,100280.0,0.089742]
[1733427532540,0.33022216,100300.0,100280.0,0.029914]
[1733427532839,0.33022216,100300.0,100290.0,0.029913]
[1733427533001,0.33022216,100300.0,100280.0,0.089741]
[1733427533999,0.33022216,100300.0,100290.0,0.029913]
[1733427535922,0.33022216,100300.0,100280.0,0.059827]
[1733427536126,0.14644629,100290.0,100270.0,0.06281951]
[1733427536357,0.14644629,100290.0,100270.0,0.09273651]
[1733427536701,0.14644629,100290.0,100280.0,0.029916]
[1733427538178,0.2245,100270.0,100260.0,0.0008668]
[1733427538389,0.61108705,100270.0,100260.0,0.0008668]
[1733427538800,0.47417605,100270.0,100260.0,0.0008668]
[1733427539023,0.2245,100270.0,100260.0,0.0008668]
[1733427539225,0.423961,100270.0,100260.0,0.0008668]
[1733427539662,0.573961,100270.0,100260.0,0.0008668]
[1733427540305,0.3745,100270.0,100260.0,0.0008668]
[1733427540532,0.573961,100270.0,100260.0,0.0008668]
[1733427541780,0.3745,100270.0,100260.0,0.0008668]
[1733427542623,0.573961,100270.0,100260.0,0.0008668]
[1733427543277,0.3745,100270.0,100260.0,0.0008668]
[1733427543894,0.3745,100270.0,100260.0,0.0307888]
[1733427544207,0.3745,100270.0,100260.0,0.05257838]
[1733427544653,0.15,100260.0,100240.0,0.023]
[1733427544851,0.15,100260.0,100250.0,0.029925]
[1733427546036,0.15,100260.0,100250.0,0.0301004]
[1733427550284,0.15,100260.0,100250.0,0.05187619]
[1733427550522,0.15,100260.0,100250.0,0.04190119]
[1733427551883,0.13,100260.0,100250.0,0.04190119]
[1733427552289,0.0009804,100280.0,100260.0,0.019946]
[1733427552508,0.0009804,100280.0,100270.0,0.14262205]
[1733427552961,0.0842334,100300.0,100290.0,0.019942]
[1733427553155,0.0852134,100300.0,100290.0,0.019942]
[1733427553613,0.18390945,100300.0,100270.0,0.019944]
[1733427553844,0.2825,100280.0,100250.0,0.04172479]
[1733427554042,0.2825,100280.0,100260.0,0.019948]
[1733427554043,0.15,100270.0,100260.0,0.019948]
[1733427554657,0.78108105,100280.0,100260.0,0.019948]
[1733427554658,0.0825,100280.0,100270.0,0.019946]
[1733427554863,0.15,100280.0,100270.0,0.019946]
[1733427555072,0.0476917,100290.0,100280.0,0.019944]
[1733427555290,0.0009917,100290.0,100280.0,0.019944]
[1733427555500,0.1842334,100300.0,100280.0,0.019944]
[1733427555704,0.1842334,100300.0,100290.0,0.019942]
[1733427556110,0.0842334,100300.0,100290.0,0.019942]
[1733427556286,0.08547968,100300.0,100290.0,0.019942]
[1733427556528,0.3342334,100300.0,100290.0,0.019942]
[1733427556941,0.33482216,100300.0,100290.0,0.019942]
[1733427557975,0.33482216,100300.0,100280.0,0.13956305]
[1733427558188,0.39807728,100290.0,100270.0,0.019945]
[1733427558381,0.0822,100280.0,100270.0,0.03989]
[1733427559055,0.2796,100290.0,100280.0,0.019944]
[1733427559876,0.579022,100290.0,100240.0,0.019952]
[1733427560086,0.84668947,100290.0,100270.0,0.019946]
[1733427560296,0.778452,100290.0,100270.0,0.039891]
[1733427560574,0.2296,100270.0,100260.0,0.019947]
[1733427562288,0.2296,100270.0,100260.0,0.0208138]
[1733427563743,0.2296,100270.0,100260.0,0.0008668]
[1733427563976,0.57563705,100270.0,100260.0,0.0008668]
[1733427564346,0.67355627,100270.0,100260.0,0.0008668]
[1733427567892,0.67563705,100270.0,100260.0,0.0008668]
[1733427568620,0.70184994,100270.0,100260.0,0.0008668]
[1733427569964,0.60184994,100270.0,100260.0,0.0008668]
[1733427570832,0.60544113,100270.0,100260.0,0.0008668]
[1733427571505,0.70544113,100270.0,100260.0,0.0008668]
[1733427571733,0.70336035,100270.0,100260.0,0.0008668]
[1733427571981,0.70544113,100270.0,100260.0,0.0008668]
[1733427572183,0.60544113,100270.0,100260.0,0.0008668]
[1733427572419,0.70544113,100270.0,100260.0,0.0008668]
[1733427572836,0.70576508,100270.0,100260.0,0.0008668]
[1733427573059,0.60576508,100270.0,100260.0,0.0008668]
[1733427573274,0.35576508,100270.0,100260.0,0.0008668]
[1733427573693,0.15630408,100270.0,100260.0,0.0008668]
[1733427573900,0.15755083,100270.0,100260.0,0.0008668]
[1733427574338,0.00359119,100270.0,100260.0,0.14349085]
[1733427574749,0.00359119,100270.0,100260.0,0.12049085]
[1733427575004,0.72305,100290.0,100260.0,0.12049085]
[1733427575217,0.922483,100290.0,100270.0,0.019946]
[1733427575437,0.85679803,100290.0,100270.0,0.019946]
[1733427575680,0.15124654,100280.0,100270.0,0.019946]
[1733427575892,0.15,100280.0,100270.0,0.019946]
[1733427577314,0.15,100280.0,100270.0,0.11962205]
[1733427577961,0.15,100280.0,100270.0,0.14262205]
[1733427578504,0.15,100280.0,100270.0,0.11962205]
[1733427579553,0.15,100280.0,100270.0,0.019946]
[1733427580307,0.15,100280.0,100260.0,0.023]
[1733427580512,0.15124648,100280.0,100250.0,0.01995]
[1733427580727,0.35068948,100280.0,100260.0,0.039893]
[1733427580889,0.15,100280.0,100270.0,0.019946]
[1733427581098,0.15124656,100280.0,100270.0,0.019946]
[1733427582421,0.35068756,100280.0,100260.0,0.039893]
[1733427582671,0.00124669,100270.0,100250.0,0.039898]
[1733427582873,0.08184669,100270.0,100250.0,0.059847]
[1733427583512,0.15,100260.0,100250.0,0.019949]
[1733427583718,0.449482,100260.0,100240.0,0.01995]
[1733427583930,0.25,100260.0,100240.0,0.05985]
[1733427584155,0.449484,100260.0,100240.0,0.0399]
[1733427584360,0.449484,100260.0,100240.0,0.059851]
[1733427584768,0.449484,100260.0,100240.0,0.0600264]
[1733427585597,0.00362532,100250.0,100240.0,0.0400754]
[1733427587990,0.00362532,100250.0,100240.0,0.13975145]
[1733427588230,0.00362532,100250.0,100240.0,0.1892581]
[1733427591556,0.0027295,100270.0,100260.0,0.019948]
[1733427591759,0.0027295,100270.0,100260.0,0.14262405]
[1733427591985,0.0017344,100270.0,100260.0,0.14262405]
[1733427596182,0.0017344,100270.0,100260.0,0.17159981]
[1733427596410,0.0027202,100300.0,100290.0,0.019942]
[1733427596626,0.0027202,100300.0,100290.0,0.14261805]
[1733427596855,0.0017334,100300.0,100290.0,0.14261805]
[1733427597766,0.00232216,100300.0,100290.0,0.14261805]
[1733427598028,0.15232216,100300.0,100290.0,0.14261805]
[1733427600517,0.00232216,100300.0,100290.0,0.14261805]
[1733427600983,0.00597915,100300.0,100290.0,0.14261805]
[1733427601950,0.00597915,100300.0,100290.0,0.16967013]
[1733427603851,0.0027225,100320.0,100300.0,0.062877]
[1733427604080,0.00289906,100320.0,100310.0,0.14261405]
[1733427604541,0.00191536,100320.0,100310.0,0.14261405]
[1733427604768,0.15191536,100320.0,100310.0,0.14261405]
[1733427605721,0.00191536,100320.0,100310.0,0.14261405]
[1733427608050,0.0017384,100330.0,100320.0,0.042936]
[1733427608273,0.0017384,100330.0,100320.0,0.14261205]
[1733427608503,5.6e-07,100330.0,100320.0,0.14261205]
[1733427608742,0.0017378,100360.0,100350.0,0.023]
[1733427608958,0.00191432,100360.0,100350.0,0.14260605]
[1733427609185,0.00191432,100360.0,100350.0,0.16618059]
[1733427610183,0.0027247,100380.0,100360.0,0.039853]
[1733427610409,0.0478348,100390.0,100380.0,0.019924]
[1733427610649,0.0017348,100390.0,100380.0,0.14260005]
[1733427610871,0.0017348,100390.0,100380.0,0.17107101]
[1733427611109,0.0017348,100390.0,100380.0,0.019924]
[1733427611365,0.0017348,100390.0,100370.0,0.039848]
[1733427611577,0.1517348,100390.0,100380.0,0.019924]
[1733427611791,0.2344348,100390.0,100380.0,0.019924]
[1733427612434,0.23389639,100390.0,100380.0,0.019924]
[1733427612684,0.23389639,100390.0,100380.0,0.11960005]
[1733427614069,0.08389639,100390.0,100380.0,0.11960005]
[1733427614281,0.08389639,100390.0,100380.0,0.14260005]
[1733427614282,0.00119639,100390.0,100380.0,0.14260005]
[1733427615411,0.00119639,100390.0,100380.0,0.1709808]
[1733427615634,0.00119639,100390.0,100380.0,0.19798591]
[1733427615855,0.00119639,100390.0,100380.0,0.16960516]
[1733427616088,0.00119639,100390.0,100380.0,0.14660516]
[1733427616325,0.08249639,100390.0,100380.0,0.14660516]
[1733427617497,0.12999639,100390.0,100380.0,0.14660516]
[1733427617738,0.27999639,100390.0,100380.0,0.14660516]
[1733427617981,0.3313,100380.0,100350.0,0.02010552]
[1733427618179,0.2313,100360.0,100350.0,0.00017652]
[1733427618622,0.2313,100360.0,100350.0,0.02010652]
[1733427618851,0.2313,100360.0,100350.0,0.04638195]
[1733427619058,0.2313,100360.0,100350.0,0.146058]
[1733427619059,0.15,100360.0,100350.0,0.146058]
[1733427619273,0.15,100370.0,100360.0,0.039853]
[1733427619492,0.15,100370.0,100360.0,0.13952905]
[1733427620355,0.15,100370.0,100360.0,0.16252905]
[1733427621470,0.15,100370.0,100360.0,0.019926]
[1733427621746,0.0775,100360.0,100350.0,0.02645195]
[1733427621962,0.4275,100360.0,100350.0,0.00017652]
[1733427623639,0.4275,100360.0,100350.0,0.02010652]
[1733427623845,0.2275,100360.0,100350.0,0.02010652]
[1733427629543,0.572382,100360.0,100350.0,0.00017652]
[1733427630444,0.57205805,100360.0,100350.0,0.00017652]
[1733427630666,0.2771,100330.0,100310.0,0.059809]
[1733427630889,0.2771,100330.0,100320.0,0.019936]
[1733427634910,0.15,100330.0,100320.0,0.019936]
[1733427637059,0.15,100330.0,100310.0,0.03320149]
[1733427637060,0.1953,100320.0,100310.0,0.03320149]
[1733427637265,0.1,100310.0,100280.0,0.019942]
[1733427637478,0.531284,100310.0,100290.0,0.039883]
[1733427637681,0.531284,100310.0,100280.0,0.11961905]
[1733427637682,0.79042625,100310.0,100280.0,0.039886]
[1733427637885,0.25,100300.0,100280.0,0.039885]
[1733427638314,0.25,100300.0,100290.0,0.019942]
[1733427638980,0.25,100300.0,100250.0,0.023]
[1733427639187,0.25058793,100300.0,100280.0,0.039884]
[1733427639443,0.25058793,100300.0,100290.0,0.019942]
[1733427640949,0.15,100280.0,100270.0,0.019945]
[1733427642955,0.15,100280.0,100270.0,0.03333678]